Cogmind - Beta 14 @@@ ROGUE MODE // 2024.12.22 @ 17:00:58 Player: Mathewnd Result: Destroyed by S-43 Plague with Heavy Machine Gun Performance ------------- Evolutions (7) 3500 Regions Visited (19) 3800 Robots Destroyed (151) 755 Value Destroyed (4600) 4600 Prototype IDs (23) 460 Alien Tech Used (0) 0 Bonus (594) 594 TOTAL SCORE: 13709 Bonus ------- High Alert Combat Kills 204 Follower Combat Kills 1163 Network Hubs Disabled 200 Met Data Miner 300 Built Enhanced Grunts 300 A7 Reached Mainframe 300 Friendly Fire -1873 Cogmind --------- Core Integrity 0/1300 Matter 298/300 Energy 58/100 System Corruption 10% Temperature Cool (0) Movement Core (50) Location -3/Research Parts ------- > --- POWER (1) -------- (None) > --- PROPULSION (5) --- (None) > --- UTILITY (13) ----- Enhanced Optical Array Advanced Signal Interpreter Improved Target Analyzer Core Analyzer > --- WEAPON (2) ------- (None) > --- INVENTORY (5) ---- Advanced Sensor Array Peak State ------------ > --- POWER ------------ Light Antimatter Reactor > --- PROPULSION ------- Gravmag System Cooled Airjet Combat Airjet Antigrav System Antigrav System > --- UTILITY ---------- Medium Storage Unit Enhanced Optical Array Advanced Sensor Array Advanced Signal Interpreter Improved Target Analyzer Core Analyzer Advanced Transmission Jammer ECM Suite Improved Hacking Suite Advanced Hacking Suite Advanced Hacking Suite Improved System Shield Improved System Restoration Module > --- WEAPON ----------- Great Axe Phasing Sabre > --- INVENTORY -------- Light Antimatter Reactor Gravmag Array Improved Linear Gravjet Advanced Sensor Array Nanoactuators Nanoactuators Cloaking Device Layered Medium Armor Plating [Rating: 108] Favorites ----------- Power Ion Engine Engine Ion Engine Power Core Nuclear Core Reactor Light Antimatter Reactor Propulsion Light Treads Treads Light Treads Leg Aluminum Leg Hover Unit Airjet Utility Medium Storage Unit Device ECM Suite Storage Medium Storage Unit Processor Enhanced Optical Array Hackware Improved Hacking Suite Protection Hardened Medium Armor Plating Weapon Beam Rifle Energy Gun Beam Rifle Energy Cannon Beam Cannon Ballistic Gun Assault Rifle Launcher Improved Grenade Launcher Impact Weapon Mace Slashing Weapon Greatsword Build | -11 -10 -9 -9 -8 -7 -7 -7 -7 -6 -6 -6 -6 -5 -5 -5 -5 -5 -4 -3 ------- Run | Yrd Mat Mat Min Mat Fac Low Low Dat Pro Fac Was Fac Fac Ext Cet Arc Hub Fac Res Slots Evolved 14 | . . 2 . 2 2 . . . . 2 . . 2 . . . . 2 2 Power . | . . . . . . . . . . . . . . . . . . . . Propulsion 3 | . . 2 . . . . . . . . . . . . . . . 1 . Utility 11 | . . . . 2 2 . . . . 2 . . 2 . . . . 1 2 Weapon . | . . . . . . . . . . . . . . . . . . . . Parts Attached 171 | 6 6 20 6 12 14 2 9 . 3 13 . 4 5 11 6 4 6 21 23 Power 23 | . 2 2 1 4 1 . 1 . . 1 . 1 2 1 1 . . 3 3 Engine 12 | . 2 2 1 3 1 . . . . . . 1 1 1 . . . . . Core 5 | . . . . 1 . . 1 . . 1 . . 1 . 1 . . . . Reactor 6 | . . . . . . . . . . . . . . . . . . 3 3 Propulsion 46 | 2 . 12 . 2 7 . 2 . . 1 . . . 2 . 2 . 7 9 Treads 14 | 2 . 10 . 2 . . . . . . . . . . . . . . . Leg 2 | . . 2 . . . . . . . . . . . . . . . . . Wheel . | . . . . . . . . . . . . . . . . . . . . Hover 30 | . . . . . 7 . 2 . . 1 . . . 2 . 2 . 7 9 Flight . | . . . . . . . . . . . . . . . . . . . . Utility 59 | 1 2 4 1 2 4 2 . . 3 10 . 3 3 . 2 . 4 10 8 Device 22 | . . 1 . . 1 . . . 1 6 . . 1 . 1 . . 6 5 Storage 4 | 1 1 . . . 1 . . . . . . 1 . . . . . . . Processor 10 | . . . . 2 2 1 . . . 3 . 1 1 . . . . . . Hackware 6 | . . . . . . . . . . . . . . . . . 4 1 1 Protection 17 | . 1 3 1 . . 1 . . 2 1 . 1 1 . 1 . . 3 2 Artifact . | . . . . . . . . . . . . . . . . . . . . Weapon 43 | 3 2 2 4 4 2 . 6 . . 1 . . . 8 3 2 2 1 3 Energy Gun 10 | 2 2 1 1 2 . . . . . . . . . . . . . . 2 Energy Cannon 2 | . . 1 1 . . . . . . . . . . . . . . . . Ballistic Gun 2 | 1 . . . 1 . . . . . . . . . . . . . . . Ballistic Cannon . | . . . . . . . . . . . . . . . . . . . . Launcher 10 | . . . 2 1 . . 2 . . . . . . 3 1 . 1 . . Special Weapon . | . . . . . . . . . . . . . . . . . . . . Impact Weapon 4 | . . . . . 2 . 2 . . . . . . . . . . . . Slashing Weapon 15 | . . . . . . . 2 . . 1 . . . 5 2 2 1 1 1 Piercing Weapon . | . . . . . . . . . . . . . . . . . . . . Special Melee Weapon . | . . . . . . . . . . . . . . . . . . . . Unidentified Prototypes . | . . . . . . . . . . . . . . . . . . . . Parts Lost 54 | . 2 3 1 1 . . 2 . . . 1 . . 2 3 3 3 4 29 Power 5 | . . . . 1 . . . . . . . . . . 1 . . . 3 Propulsion 22 | . . 2 . . . . 2 . . . . . . 2 . 2 . 4 10 Utility 18 | . . . 1 . . . . . . . 1 . . . 2 . 2 . 12 Weapon 9 | . 2 1 . . . . . . . . . . . . . 1 1 . 4 Highest Loss Streak 19 | . 1 1 1 1 . . 2 . . . 1 . . 2 3 3 3 2 19 To Critical Strikes 1 | . . . . . . . . . . . . . . . . . . . 1 Average Slot Usage (%) 94 | . 95 94 100 96 98 100 96 92 92 89 91 90 89 94 93 94 99 99 86 Engine 5 | . 12 11 11 7 6 7 2 . . . . 5 4 5 . . . . . Core 1 | . . . . 1 . . 4 7 7 6 6 . . . 4 5 5 . . Treads 15 | . 28 35 44 36 . . . . . . . . . . . . . . . Hover 14 | . . . . . 29 30 30 30 30 26 26 26 23 22 23 17 23 25 15 Device 8 | . . . . . 6 7 7 7 7 19 20 20 22 23 17 17 . 11 18 Storage 7 | . 14 11 11 9 7 7 7 7 7 6 4 . 5 5 5 5 5 5 3 Processor 14 | . . . . 14 22 23 23 23 23 20 26 26 25 29 29 29 29 21 19 Hackware 3 | . . . . . . . . . . . . . . . . . 22 15 14 Protection 6 | . 10 10 11 9 7 7 7 7 6 2 . 3 . . 4 5 . 2 . Energy Gun 5 | . 16 12 10 8 . . . . . . . . . . . . . . . Energy Cannon 2 | . . 9 10 3 . . . . . . . . . . . . . . . Ballistic Gun 1 | . 10 . . 5 . . . . . . . . . . . . . . . Slashing Weapon 3 | . . . . . . . 3 7 7 5 6 6 5 4 4 10 10 10 7 Peak Build Rating 108 | 5 9 15 17 22 33 34 37 37 39 54 54 57 65 70 75 77 81 98 108 Average Rating 44 | 3 8 12 14 18 31 33 34 37 38 47 53 54 61 65 73 72 80 92 96 On Entrance 42 | . 5 9 15 14 21 33 33 37 37 39 54 51 56 65 70 75 75 71 97 Naked Turns . | . . . . . . . . . . . . . . . . . . . . Heaviest Build 47 | 9 33 41 47 41 28 28 33 28 28 32 25 28 29 34 33 35 35 46 43 Greatest Support 80 | 40 40 80 80 80 32 32 32 32 32 34 34 34 34 38 38 38 38 51 51 Greatest Overweight (x) 3 | 1 . . . . . . 1 . . . . . . 1 . 1 . 1 3 Average Overweight (x) . | . . . . . . . . . . . . . . . . . . . . Largest Inventory Capacity 15 | 8 15 15 15 15 15 10 10 10 10 10 10 10 10 10 10 10 10 10 10 Average Capacity 11 | 7 14 15 15 15 10 10 10 10 10 10 8 5 10 10 10 10 10 10 9 Most Carried 15 | 8 15 15 15 15 15 10 10 10 10 10 10 6 10 10 10 10 10 10 10 Average Carried 10 | 5 11 14 13 14 10 10 9 10 9 9 8 5 8 9 8 8 9 8 5 Final Capacity 15 | 8 15 15 15 15 10 10 10 10 10 10 5 10 10 10 10 10 10 10 5 Final Carried 15 | 7 15 15 13 15 10 10 10 10 10 10 5 6 9 8 9 10 9 10 1 Class Distribution -------------------- 31% | Scavenger-Mutant 18% | Mutant 16% | Infiltrator-Ninja 5% | Scout 5% | Hacker-Ninja 4% | Derelict-Scout 3% | Scavenger-Gladiator Dominant Class ---------------- Mutant | -10/Materials Scavenger-Mutant | -9/Materials Scavenger-Mutant | -9/Mines Scavenger-Mutant | -8/Materials Scout | -7/Factory Scout | -7/Lower Caves Derelict-Scout | -7/Lower Caves Derelict-Scout | -7/Data Miner Derelict-Scout | -6/Proximity Caves Infiltrator-Ninja | -6/Factory Infiltrator-Ninja | -6/Waste Infiltrator-Ninja | -6/Factory Infiltrator-Ninja | -5/Factory Infiltrator-Ninja | -5/Extension Commander-Gladiator | -5/Cetus Commander-Gladiator | -5/Archives Hacker-Gladiator | -5/Hub_04(d) Scavenger-Mutant | -4/Factory Hacker-Ninja | -3/Research Resources | -11 -10 -9 -9 -8 -7 -7 -7 -7 -6 -6 -6 -6 -5 -5 -5 -5 -5 -4 -3 ----------- Run | Yrd Mat Mat Min Mat Fac Low Low Dat Pro Fac Was Fac Fac Ext Cet Arc Hub Fac Res Matter Collected 2332 | 200 233 190 10 187 35 66 356 . 36 91 . 69 60 192 134 57 40 221 155 Remotely . | . . . . . . . . . . . . . . . . . . . . Salvage Created 6615 | . 559 1508 4 319 76 . 177 . . 257 . 298 83 626 30 272 805 826 775 Parts 341 | . 27 96 2 21 4 . 10 . . 18 . 13 . 22 . 19 26 47 36 Haulers Intercepted 7 | . . 3 . . . . . . . . . . 1 . . . 1 2 . Recyclers Shooed 1 | . . . . . . . . . . . . . . 1 . . . . . Parts Field Recycled . | . . . . . . . . . . . . . . . . . . . . Retrieved Matter . | . . . . . . . . . . . . . . . . . . . . Parts Self-Destructed 11 | . . . . . . . 11 . . . . . . . . . . . . Prevented 5 | . . . . . . . 5 . . . . . . . . . . . . Kills | -11 -10 -9 -9 -8 -7 -7 -7 -7 -6 -6 -6 -6 -5 -5 -5 -5 -5 -4 -3 ------- Run | Yrd Mat Mat Min Mat Fac Low Low Dat Pro Fac Was Fac Fac Ext Cet Arc Hub Fac Res Combat Hostiles Destroyed 93 | . 10 31 4 9 2 . 6 . . 3 . . . 12 1 1 2 8 4 Melee 30 | . . . . . 2 . . . . 3 . . . 9 1 1 2 8 4 Guns 25 | . 10 11 . 4 . . . . . . . . . . . . . . . Cannons 20 | . . 19 . 1 . . . . . . . . . . . . . . . AOE 17 | . . . 4 4 . . 6 . . . . . . 3 . . . . . Classes Destroyed 14 | . 4 6 . 1 . . 1 . . 1 . . . . . . . . 1 Worker 10 | . . 3 . . . . . . . 1 . . . . . . 3 2 1 Builder 5 | . . 1 . . . . . . . . . . . 1 . . 2 1 . Tunneler 1 | . . . . . . . . . . . . . . . . . . . 1 Hauler 7 | . . 3 . . . . . . . . . . 1 . . . 1 2 . Recycler 9 | . 1 1 . . . . . . . . . 2 . 1 . . . 1 3 Minesweeper 1 | . . . . . . . 1 . . . . . . . . . . . . Mechanic 1 | . . 1 . . . . . . . . . . . . . . . . . Operator 8 | . 1 1 . . . . . . . . . 1 . . . 5 . . . Watcher 10 | . 2 3 . 1 . . . . . 2 . 1 . . . . . . 1 Swarmer 24 | . . 6 4 4 . . 3 . . . . . . 5 . . . 2 . Grunt 44 | . 10 17 . 1 2 . 3 . . 1 . . . 6 . . 2 2 . Sentry 13 | . . 8 . 3 . . . . . . . . . 1 . 1 . . . Hunter 4 | . . . . 1 . . . . . 1 . . . . . . . . 2 Programmer 7 | . . . . . . . . . . 1 . . . . . . . 4 2 Cetus Guard 1 | . . . . . . . . . . . . . . . 1 . . . . Enhanced Grunt 4 | . . . . . . . . . . . . . . . . . 4 . . Guerrilla 2 | . . . . . . . . . . . . . . . . . 2 . . Best Kill Streak 6 | . 4 5 4 4 1 . 3 . . 2 . 1 1 3 1 3 6 2 2 Combat Bots Only 4 | . 4 3 4 4 1 . 3 . . 1 . . . 3 1 1 2 2 2 Max Kills in Single Turn 8 | . 1 4 4 4 1 . 3 . . 1 . 1 1 2 1 1 8 1 1 Gunslinging . | . . . . . . . . . . . . . . . . . . . . Exploded 4 | . . . 4 4 . . 3 . . . . . . 2 . . . . . Melee 1 | . . . . . 1 . . . . 1 . . . 1 1 1 1 1 1 Uniques/NPCs Destroyed . | . . . . . . . . . . . . . . . . . . . . Combat | -11 -10 -9 -9 -8 -7 -7 -7 -7 -6 -6 -6 -6 -5 -5 -5 -5 -5 -4 -3 -------- Run | Yrd Mat Mat Min Mat Fac Low Low Dat Pro Fac Was Fac Fac Ext Cet Arc Hub Fac Res Hostile Shots Fired 679 | . 59 114 11 57 27 . 21 . 2 10 1 . . 57 7 20 19 77 197 Missed 208 | . 12 28 4 12 10 . 10 . 1 5 . . . 20 3 9 7 30 57 Damage Taken 8493 | . 623 1241 170 671 230 . 295 . 21 33 30 . . 479 107 304 416 899 2974 Core 2335 | . 106 92 82 124 14 . 82 . . 22 . . . 112 . 28 175 183 1315 Absorbed by Shields 204 | . . . . . . . . . . . . . . 164 40 . . . . Regen/Repaired (Parts) 384 | . . . . . . . . . . 51 . . . . . . . 333 . Core Remaining (%) 78 | 100 57 . 56 77 . . . . 86 . . 97 . . . . 68 84 . Volleys Fired 193 | . 48 91 1 29 . . 4 . . . . . . 14 2 . 2 . 2 Largest 2 | . 2 2 2 2 . . 2 . . . . . . 1 1 . 1 . 1 Hottest 116 | . 80 116 72 116 . . 72 . . . . . . 36 36 . 36 . 75 Shots Fired 363 | . 96 180 2 57 . . 8 . . . . . . 14 2 . 2 . 2 Gun 247 | . 96 99 . 50 . . . . . . . . . . . . . . 2 Cannon 87 | . . 81 . 6 . . . . . . . . . . . . . . . Launcher 29 | . . . 2 1 . . 8 . . . . . . 14 2 . 2 . . Special . | . . . . . . . . . . . . . . . . . . . . Kinetic 63 | . 41 . . 22 . . . . . . . . . . . . . . . Thermal 269 | . 55 180 . 34 . . . . . . . . . . . . . . . Explosive 29 | . . . 2 1 . . 8 . . . . . . 14 2 . 2 . . Electromagnetic 2 | . . . . . . . . . . . . . . . . . . . 2 Robot Hit Streak 23 | . 13 23 4 13 . . 3 . . . . . . 6 1 . . . 3 Robot Miss Streak 7 | . 5 7 . 2 . . 1 . . . . . . 2 . . . . . Penetration Max . | . . . . . . . . . . . . . . . . . . . . Secondary Targets . | . . . . . . . . . . . . . . . . . . . . Shots Hit Robots 355 | . 62 118 1 43 10 . 6 . . 6 . 9 1 22 2 13 3 28 31 Core Hits 216 | . 28 58 3 18 3 . 7 . . 4 . 4 1 24 5 6 25 16 14 Critical Kills 3 | . 1 . . . 1 . 1 . . . . . . . . . . . . Critical Parts Destroyed 1 | . . . . . 1 . . . . . . . . . . . . . . Critical Strikes 26 | . 1 8 . 1 2 . 1 . . . . . . 4 . 1 1 . 7 Burn 9 | . . 8 . 1 . . . . . . . . . . . . . . . Destroy 1 | . 1 . . . . . . . . . . . . . . . . . . Smash 3 | . . . . . 2 . 1 . . . . . . . . . . . . Sever 13 | . . . . . . . . . . . . . . 4 . 1 1 . 7 Melee Attacks 199 | . . . . . 16 . 1 . 2 9 . 20 1 24 1 13 7 57 48 Impact 17 | . . . . . 16 . 1 . . . . . . . . . . . . Slashing 182 | . . . . . . . . . 2 9 . 20 1 24 1 13 7 57 48 Piercing . | . . . . . . . . . . . . . . . . . . . . Sneak Attacks 28 | . . . . . . . 1 . . 2 . 2 1 2 . 7 . 7 6 Combat Hostiles 2 | . . . . . . . . . . 1 . . . 1 . . . . . Follow-up Attacks 6 | . . . . . 2 . . . . . . . . . . 1 . 2 1 Damage Inflicted 13902 | . 746 2406 403 866 327 . 553 . . 457 . 591 93 1882 180 959 1498 1432 1509 Guns 2206 | . 746 890 . 522 . . . . . . . . . . . . . . 48 Cannons 1171 | . . 1083 . 88 . . . . . . . . . . . . . . . Explosions 3787 | . . 433 403 256 . . 502 . . . . . . 712 125 . 1356 . . Melee 6733 | . . . . . 327 . 51 . . 457 . 591 93 1170 55 959 142 1432 1456 Ramming 5 | . . . . . . . . . . . . . . . . . . . 5 Kinetic 602 | . 364 . . 238 . . . . . . . . . . . . . . . Thermal 2998 | . 382 1973 96 372 . . . . . . . . . 175 . . . . . Explosive 2225 | . . 433 307 256 . . 502 . . . . . . 537 125 . 65 . . Electromagnetic 1339 | . . . . . . . . . . . . . . . . . 1291 . 48 Impact 378 | . . . . . 327 . 51 . . . . . . . . . . . . Slashing 6355 | . . . . . . . . . . 457 . 591 93 1170 55 959 142 1432 1456 Piercing . | . . . . . . . . . . . . . . . . . . . . Highest Corruption 10 | . . . . . . . 1 1 1 . . . . . . . 5 1 10 Average Corruption 2 | . . . . . . . 1 1 1 . . . . . . . 4 1 6 Corruption Purged 4 | . . . . . . . . . . . . . . . . . . 2 2 Corruption Blocked . | . . . . . . . . . . . . . . . . . . . . Effects 14 | . . . . . . . 5 . 2 . . . . . . . . 2 5 Message Errors 2 | . . . . . . . 1 . . . . . . . . . . . 1 Matter Fused 4 | . . . . . . . 1 . 1 . . . . . . . . . 2 Heat Flow Errors 2 | . . . . . . . 2 . . . . . . . . . . . . Data Loss (minor) 3 | . . . . . . . 1 . 1 . . . . . . . . . 1 Data Loss (major) 2 | . . . . . . . . . . . . . . . . . . 2 . Misdirections 1 | . . . . . . . . . . . . . . . . . . . 1 Overload Shots . | . . . . . . . . . . . . . . . . . . . . Overflow Damage 1328 | . . 58 39 . 18 . 116 . . 104 . 154 . 170 . 229 54 239 147 Projectiles 5 | . . 5 . . . . . . . . . . . . . . . . . Explosions 267 | . . 53 39 . . . 116 . . . . . . 5 . . 54 . . Melee 1056 | . . . . . 18 . . . . 104 . 154 . 165 . 229 . 239 147 Knockbacks 5 | . . . . . 5 . . . . . . . . . . . . . . Impact 4 | . . . . . 4 . . . . . . . . . . . . . . Kinetic . | . . . . . . . . . . . . . . . . . . . . Secondary 1 | . . . . . 1 . . . . . . . . . . . . . . Self-Inflicted Damage 392 | . . 142 . . . . 146 . . . . . . . . . 102 . 2 Shots 7 | . . 2 . . . . 4 . . . . . . . . . 1 . . Rammed 2 | . . . . . . . . . . . . . . . . . . . 2 Targets Rammed 2 | . . . . . . . . . . . . . . . . . . . 2 Kicked . | . . . . . . . . . . . . . . . . . . . . Crushed . | . . . . . . . . . . . . . . . . . . . . Highest Temperature 390 | . 256 390 21 274 10 . 209 . . . . . . . . . . 29 5 Average Temperature 99 | . 77 114 11 89 5 . 68 . . . . . . . . . . 19 3 Received Heat Transfer 1561 | . 393 474 . 180 129 . 99 . . 6 . . . 48 22 72 18 48 72 Effects 4 | . . 4 . . . . . . . . . . . . . . . . . Shutdowns 1 | . . 1 . . . . . . . . . . . . . . . . . Energy Bleed 2 | . . 2 . . . . . . . . . . . . . . . . . Interference 1 | . . 1 . . . . . . . . . . . . . . . . . Siege Activations . | . . . . . . . . . . . . . . . . . . . . Robots Corrupted 4 | . . . . . . . . . . . . . . . . . 4 . . Combat Hostiles . | . . . . . . . . . . . . . . . . . . . . Parts Fried 11 | . . . . . . . . . . . . . . . . . 11 . . Impact Corruptions 1 | . . . . . 1 . . . . . . . . . . . . . . Robots Melted 1 | . . 1 . . . . . . . . . . . . . . . . . Combat Hostiles 1 | . . 1 . . . . . . . . . . . . . . . . . Parts Melted 21 | . . 12 . 7 . . . . . . . . . 2 . . . . . Heat Transferred 7145 | . 887 5109 100 999 . . . . . . . . . 50 . . . . . Parts Sabotaged . | . . . . . . . . . . . . . . . . . . . . Parts Stolen . | . . . . . . . . . . . . . . . . . . . . Parts Stripped . | . . . . . . . . . . . . . . . . . . . . Power Chain Reactions 1 | . . . . . . . 1 . . . . . . . . . . . . Alert | -11 -10 -9 -9 -8 -7 -7 -7 -7 -6 -6 -6 -6 -5 -5 -5 -5 -5 -4 -3 ------- Run | Yrd Mat Mat Min Mat Fac Low Low Dat Pro Fac Was Fac Fac Ext Cet Arc Hub Fac Res Peak Influence 1020 | . 175 565 252 219 235 . . . . 1020 259 255 39 750 560 495 900 441 209 Initial 928 | . . 9 207 56 84 . . . . 928 254 181 32 18 420 224 172 441 47 Average 211 | . 74 233 107 119 171 . . . . 864 252 132 34 181 544 445 307 136 85 Maximum Alert Level 3 | . . 2 1 1 1 . . . . 3 1 1 . 3 2 2 3 2 1 Low Security (%) 67 | 100 100 52 59 94 52 . . . . . . 81 100 71 . . 44 91 93 Level 1 16 | . . 21 40 5 47 . . . . . 100 18 . 22 . 14 40 7 6 Level 2 9 | . . 25 . . . . . . . 3 . . . 5 100 85 8 1 . Level 3 6 | . . . . . . . . . . 96 . . . . . . 7 . . Level 4 . | . . . . . . . . . . . . . . . . . . . . Level 5 . | . . . . . . . . . . . . . . . . . . . . High Security . | . . . . . . . . . . . . . . . . . . . . Max Security . | . . . . . . . . . . . . . . . . . . . . Squads Dispatched 23 | . 3 4 . . 1 . . . 1 5 . . . 3 . . 1 4 1 Investigation 4 | . . 1 . . . . . . . 1 . . . 1 . . . 1 . Extermination 6 | . . . . . 1 . . . . 2 . . . . . . . 2 1 Reinforcement 11 | . 3 2 . . . . . . . 2 . . . 2 . . 1 1 . Assault 2 | . . 1 . . . . . . 1 . . . . . . . . . . Garrison . | . . . . . . . . . . . . . . . . . . . . Intercept . | . . . . . . . . . . . . . . . . . . . . Searches Triggered 2 | . . . . . . . . . . 2 . . . . . . . . . Construction Impeded 1 | . . . . . . . . . . . . . . 1 . . . . . Haulers Reinforced . | . . . . . . . . . . . . . . . . . . . . Active Scanning Responses . | . . . . . . . . . . . . . . . . . . . . Cargo Convoy Interrupts . | . . . . . . . . . . . . . . . . . . . . Stealth | -11 -10 -9 -9 -8 -7 -7 -7 -7 -6 -6 -6 -6 -5 -5 -5 -5 -5 -4 -3 --------- Run | Yrd Mat Mat Min Mat Fac Low Low Dat Pro Fac Was Fac Fac Ext Cet Arc Hub Fac Res Distress Signals 19 | . 1 5 . 1 . . . . 1 . . . . 2 1 . 2 1 5 Communications Jammed 63 | . . . . . . . . . 2 . . 10 . . . . . 45 6 Distress Signals 55 | . . . . . . . . . . . . 10 . . . . . 45 . Times Spotted 295 | . 24 55 9 15 6 . 9 . 14 8 5 4 . 37 4 7 20 47 31 Peak Tracking Total 15 | . 6 3 4 5 4 . 3 . 6 1 5 1 . 9 4 3 15 7 11 Tactical Retreats 35 | . . 4 1 . 3 . 1 . 2 1 . . . 4 . . 1 12 6 Traps | -11 -10 -9 -9 -8 -7 -7 -7 -7 -6 -6 -6 -6 -5 -5 -5 -5 -5 -4 -3 ------- Run | Yrd Mat Mat Min Mat Fac Low Low Dat Pro Fac Was Fac Fac Ext Cet Arc Hub Fac Res Traps Triggered 16 | . . 2 . . 1 . 2 . . 2 . . . 2 . . . 2 5 Indirectly 1 | . . . . . . . 1 . . . . . . . . . . . . Trap Hack Attempts . | . . . . . . . . . . . . . . . . . . . . Triggered . | . . . . . . . . . . . . . . . . . . . . Disarmed . | . . . . . . . . . . . . . . . . . . . . Reprogrammed 5 | . . . . . . . . . . . . . . . . . . 5 . Reused . | . . . . . . . . . . . . . . . . . . . . Traps Extracted . | . . . . . . . . . . . . . . . . . . . . Installed 7 | . . . . . . . 7 . . . . . . . . . . . . Triggered 6 | . . . 1 . . . 5 . . . . . . . . . . . . Machines | -11 -10 -9 -9 -8 -7 -7 -7 -7 -6 -6 -6 -6 -5 -5 -5 -5 -5 -4 -3 ---------- Run | Yrd Mat Mat Min Mat Fac Low Low Dat Pro Fac Was Fac Fac Ext Cet Arc Hub Fac Res Machines Disabled 16 | . . 2 2 . . . . . . . . . . 4 . 1 7 . . Max in Single Turn 7 | . . 2 2 . . . . . . . . . . 2 . . 7 . . Garrison Access 5 | . . . . . 1 . . . . . . . . . . . 1 2 1 Network Hub 1 | . . . . . . . . . . . . . . . . . 1 . . Energy Cycler 2 | . . . . . . . . . . . . . . 2 . . . . . Machines Repaired . | . . . . . . . . . . . . . . . . . . . . Machines Dismantled . | . . . . . . . . . . . . . . . . . . . . Machines Sabotaged . | . . . . . . . . . . . . . . . . . . . . Overloaded Fab Kills . | . . . . . . . . . . . . . . . . . . . . Hacking | -11 -10 -9 -9 -8 -7 -7 -7 -7 -6 -6 -6 -6 -5 -5 -5 -5 -5 -4 -3 --------- Run | Yrd Mat Mat Min Mat Fac Low Low Dat Pro Fac Was Fac Fac Ext Cet Arc Hub Fac Res Machines Accessed 60 | . 4 6 . 2 4 . . 4 . 6 . 4 1 6 2 . 2 15 4 Terminals 39 | . 3 6 . 2 2 . . . . 3 . 2 1 5 2 . 1 9 3 Fabricators 3 | . . . . . 1 . . . . . . 1 . . . . . 1 . Repair Stations 3 | . . . . . . . . . . 1 . . . . . . . 2 . Recycling Units 3 | . 1 . . . . . . . . . . . . 1 . . . 1 . Scanalyzers 1 | . . . . . . . . . . . . 1 . . . . . . . Garrison Access 7 | . . . . . 1 . . . . 2 . . . . . . 1 2 1 Total Hacks 201 | . 7 13 . 3 10 . . 28 . 13 . 6 1 13 4 . 3 83 17 Successful 138 | . 4 9 . 2 6 . . 28 . 3 . 4 . 7 3 . 1 59 12 Failed 62 | . 3 4 . 1 4 . . . . 10 . 2 1 6 1 . 2 23 5 Catastrophic 9 | . . 1 . . . . . . . 3 . . 1 1 . . 1 2 . Database Lockouts 1 | . . . . . . . . . . . . . . . . . . 1 . Manual 34 | . 1 . . . . . . . . . . . . 1 3 . 1 21 7 Terminals 135 | . 6 13 . 3 8 . . . . 6 . 4 1 11 4 . 1 62 16 Fabricators 5 | . . . . . 1 . . . . . . 1 . . . . . 3 . Repair Stations 16 | . . . . . . . . . . 3 . . . . . . . 13 . Recycling Units 4 | . 1 . . . . . . . . . . . . 2 . . . 1 . Scanalyzers 1 | . . . . . . . . . . . . 1 . . . . . . . Garrison Access 12 | . . . . . 1 . . . . 4 . . . . . . 2 4 1 Terminal Hacks 106 | . 3 9 . 2 4 . . 28 . 1 . 2 . 6 3 . . 40 8 Record 20 | . . . . . . . . 11 . 1 . . . 1 2 . . 4 1 Part Schematic 9 | . . . . . . . . 8 . . . . . . . . . 1 . Robot Schematic 6 | . . . . . . . . 6 . . . . . . . . . . . Robot Analysis 1 | . . . . . 1 . . . . . . . . . . . . . . Prototype ID Bank 10 | . . 3 . 1 . . . 3 . . . . . 1 . . . 2 . Open Door 2 | . . . . . . . . . . . . . . 1 1 . . . . Level Access Points 2 | . . . . . . . . . . . . . . . . . . 1 1 Branch Access Points 3 | . . 1 . . . . . . . . . . . . . . . 1 1 Emergency Access Points 4 | . . . . . . . . . . . . . . . . . . 4 . Terminal Index 2 | . . . . . . . . . . . . . . 1 . . . 1 . Repair Station Index 1 | . . . . . . . . . . . . . . . . . . 1 . Garrison Index 1 | . . . . . . . . . . . . . . . . . . 1 . Alert Level 14 | . . 2 . . 1 . . . . . . 1 . 1 . . . 7 2 Unreport Threat 2 | . . . . . . . . . . . . . . . . . . 2 . Locate Traps 9 | . 2 . . . . . . . . . . 1 . 1 . . . 4 1 Reprogram Traps 2 | . . . . . . . . . . . . . . . . . . 2 . Dispatch Records 2 | . 1 . . . . . . . . . . . . . . . . 1 . Investigation Status 1 | . . . . . . . . . . . . . . . . . . 1 . Recall Investigation 1 | . . . . . . . . . . . . . . . . . . 1 . Recall Reinforcements 1 | . . . . . . . . . . . . . . . . . . 1 . Hauler Manifests 1 | . . . . 1 . . . . . . . . . . . . . . . Registered Components 2 | . . 1 . . . . . . . . . . . . . . . 1 . Registered Prototypes 1 | . . . . . . . . . . . . . . . . . . 1 . Zone Layout 9 | . . 2 . . 2 . . . . . . . . . . . . 3 2 Fabricator Hacks 5 | . . . . . 1 . . . . . . 1 . . . . . 3 . Network Status 3 | . . . . . 1 . . . . . . 1 . . . . . 1 . Load Schematic 1 | . . . . . . . . . . . . . . . . . . 1 . Build 1 | . . . . . . . . . . . . . . . . . . 1 . Repair Station Hacks 11 | . . . . . . . . . . 2 . . . . . . . 9 . Scan Component 6 | . . . . . . . . . . 1 . . . . . . . 5 . Repair 5 | . . . . . . . . . . 1 . . . . . . . 4 . Recycling Unit Hacks 3 | . 1 . . . . . . . . . . . . 1 . . . 1 . Report Inventory 3 | . 1 . . . . . . . . . . . . 1 . . . 1 . Scanalyzer 1 | . . . . . . . . . . . . 1 . . . . . . . Insert Component 1 | . . . . . . . . . . . . 1 . . . . . . . Garrison Access Hacks 5 | . . . . . 1 . . . . . . . . . . . 1 2 1 Seal Access 5 | . . . . . 1 . . . . . . . . . . . 1 2 1 Unauthorized Hacks 7 | . . . . . . . . . . . . . . . . . . 4 3 Terminals 7 | . . . . . . . . . . . . . . . . . . 4 3 Assimilate 1 | . . . . . . . . . . . . . . . . . . 1 . Botnet 6 | . . . . . . . . . . . . . . . . . . 3 3 Fabricators . | . . . . . . . . . . . . . . . . . . . . Repair Stations . | . . . . . . . . . . . . . . . . . . . . Recycling Units . | . . . . . . . . . . . . . . . . . . . . Scanalyzers . | . . . . . . . . . . . . . . . . . . . . Garrison Access . | . . . . . . . . . . . . . . . . . . . . Data Cores Recovered 2 | . . . . . . . . . . . . 1 . 1 . . . . . Used . | . . . . . . . . . . . . . . . . . . . . Hacking Detections 42 | . 2 5 . 1 3 . . . . 5 . 2 1 5 3 . 1 11 3 Full Trace Events 4 | . 1 . . . . . . . . 1 . . . 1 . . . 1 . Feedback Events . | . . . . . . . . . . . . . . . . . . . . Feedback Blocked . | . . . . . . . . . . . . . . . . . . . . Robot Schematics Acquired 6 | . . . . . . . . 6 . . . . . . . . . . . Robots Built . | . . . . . . . . . . . . . . . . . . . . Authchips . | . . . . . . . . . . . . . . . . . . . . Time . | . . . . . . . . . . . . . . . . . . . . Total Robot Build Rating . | . . . . . . . . . . . . . . . . . . . . Part Schematics Acquired 9 | . . . . . . . . 8 . . . . . . . . . 1 . Parts Built 1 | . . . . . . . . . . . . . . . . . . 1 . Authchips . | . . . . . . . . . . . . . . . . . . . . Time 106 | . . . . . . . . . . . . . . . . . . 106 . Total Part Build Rating 6 | . . . . . . . . . . . . . . . . . . 6 . Parts Repaired 5 | . . . . . . . . . . 1 . . . . . . . 4 . Time 164 | . . . . . . . . . . 44 . . . . . . . 120 . Parts Recycled . | . . . . . . . . . . . . . . . . . . . . Recycled Matter . | . . . . . . . . . . . . . . . . . . . . Retrieved Matter . | . . . . . . . . . . . . . . . . . . . . Retrieved Components . | . . . . . . . . . . . . . . . . . . . . Parts Scanalyzed . | . . . . . . . . . . . . . . . . . . . . Part Schematics Acquired . | . . . . . . . . . . . . . . . . . . . . Parts Damaged . | . . . . . . . . . . . . . . . . . . . . Bothacking | -11 -10 -9 -9 -8 -7 -7 -7 -7 -6 -6 -6 -6 -5 -5 -5 -5 -5 -4 -3 ------------ Run | Yrd Mat Mat Min Mat Fac Low Low Dat Pro Fac Was Fac Fac Ext Cet Arc Hub Fac Res Used RIF Installer . | . . . . . . . . . . . . . . . . . . . . Robots Hacked . | . . . . . . . . . . . . . . . . . . . . Non-combat . | . . . . . . . . . . . . . . . . . . . . Combat . | . . . . . . . . . . . . . . . . . . . . Robot Hacks Applied . | . . . . . . . . . . . . . . . . . . . . Relay Couplers Released . | . . . . . . . . . . . . . . . . . . . . Fabnet Peak Effective % . | . . . . . . . . . . . . . . . . . . . . Robots Rewired 12 | . . . . . . . . . . . . . . 12 . . . . . Allies Hacked . | . . . . . . . . . . . . . . . . . . . . Hacks Repelled . | . . . . . . . . . . . . . . . . . . . . Allies | -11 -10 -9 -9 -8 -7 -7 -7 -7 -6 -6 -6 -6 -5 -5 -5 -5 -5 -4 -3 -------- Run | Yrd Mat Mat Min Mat Fac Low Low Dat Pro Fac Was Fac Fac Ext Cet Arc Hub Fac Res Total Allies 23 | . . . . . . . . . . . . . . 17 5 . . 1 . Largest Group 9 | . . . . . . . . . . . . . . 9 9 9 6 1 . Highest-Rated Group 727 | . . . . . . . . . . . . . . 299 727 727 462 10 . Highest-Rated Ally 159 | . . . . . . . . . . . . . . 159 151 135 96 10 . Total Orders 3 | . . . . . . . . . . . . . . . . . . 3 . STAY 1 | . . . . . . . . . . . . . . . . . . 1 . FOLLOW 2 | . . . . . . . . . . . . . . . . . . 2 . Ally Attacks 173 | . . . . . . . . . . . . . . 105 20 30 18 . . Total Damage 4178 | . . . . . . . . . . . . . . 2399 459 883 437 . . Kills 33 | . . . . . . . . . . . . . . 20 4 6 3 . . Allies Corrupted 4 | . . . . . . . . . . . . . . . . . 4 . . Allies Melted 1 | . . . . . . . . . . . . . . 1 . . . . . Intel | -11 -10 -9 -9 -8 -7 -7 -7 -7 -6 -6 -6 -6 -5 -5 -5 -5 -5 -4 -3 ------- Run | Yrd Mat Mat Min Mat Fac Low Low Dat Pro Fac Was Fac Fac Ext Cet Arc Hub Fac Res Robot Analysis Total 1 | . . . . . 1 . . . . . . . . . . . . . . Derelict Logs Recovered 7 | . . . 1 . . 2 2 . 2 . . . . . . . . . . Drone Launches . | . . . . . . . . . . . . . . . . . . . . Drone Recoveries . | . . . . . . . . . . . . . . . . . . . . Exploration | -11 -10 -9 -9 -8 -7 -7 -7 -7 -6 -6 -6 -6 -5 -5 -5 -5 -5 -4 -3 ------------- Run | Yrd Mat Mat Min Mat Fac Low Low Dat Pro Fac Was Fac Fac Ext Cet Arc Hub Fac Res Turns Passed 12459 | 91 1212 2427 993 581 362 156 602 38 178 764 81 778 100 785 248 184 277 1627 975 Spaces Moved 11712 | 49 618 1095 604 266 445 318 1047 79 347 1236 160 1080 177 535 351 189 388 2015 713 Core 10 | 5 . . . . . . . . . . . . . . . . . . 5 Treads 2627 | 44 618 1095 604 266 . . . . . . . . . . . . . . . Legs . | . . . . . . . . . . . . . . . . . . . . Wheels . | . . . . . . . . . . . . . . . . . . . . Hover 9075 | . . . . . 445 318 1047 79 347 1236 160 1080 177 535 351 189 388 2015 708 Flight . | . . . . . . . . . . . . . . . . . . . . Fastest Speed 45 | 50 160 160 160 160 48 48 48 48 48 48 48 48 48 48 50 50 50 46 45 Average Speed 74 | 150 160 160 160 160 48 48 53 48 48 48 48 48 48 48 50 68 50 46 65 Slowest Speed 240 | 160 160 160 160 160 48 48 108 48 48 48 48 48 48 108 50 126 50 118 240 Overloaded Moves . | . . . . . . . . . . . . . . . . . . . . Propulsion Burnouts . | . . . . . . . . . . . . . . . . . . . . Robots Hopped . | . . . . . . . . . . . . . . . . . . . . Cave-ins Triggered . | . . . . . . . . . . . . . . . . . . . . Exploration Rate (%) 54 | 4 89 67 94 34 15 53 93 72 67 25 78 26 7 70 93 99 40 37 17 Regions Visited 19 Branch Regions 9 Pre-discovered Areas 1 | . . . . . . . . 1 . . . . . . . . . . . Known Exits Taken 14 | . . 1 . 1 1 1 1 1 1 . . 1 1 1 1 1 1 1 . Unknown Exits Taken 3 | 1 1 . 1 . . . . . . . . . . . . . . . . Scrap Searched 15 | . . . 3 . . 2 7 . 3 . . . . . . . . . . Spaces Dug 26 | . . . . . . . . . . 1 . 6 . . . . . 15 4 Terrain Destroyed 480 | . . 14 30 6 . . 67 . . 1 . 6 . 133 28 . 176 15 4 Melee 26 | . . . . . . . . . . 1 . 6 . . . . . 15 4 Projectile . | . . . . . . . . . . . . . . . . . . . . AOE 454 | . . 14 30 6 . . 67 . . . . . . 133 28 . 176 . . Terrain Rammed . | . . . . . . . . . . . . . . . . . . . . Walls Destroyed . | . . . . . . . . . . . . . . . . . . . . Machines Disabled . | . . . . . . . . . . . . . . . . . . . . Actions | -11 -10 -9 -9 -8 -7 -7 -7 -7 -6 -6 -6 -6 -5 -5 -5 -5 -5 -4 -3 --------- Run | Yrd Mat Mat Min Mat Fac Low Low Dat Pro Fac Was Fac Fac Ext Cet Arc Hub Fac Res Total 14790 | 66 747 1600 627 373 576 320 1081 78 354 1392 163 1299 189 1006 421 232 456 2638 1172 Wait 2071 | . 54 357 16 47 73 . 3 . . 119 4 192 1 188 54 15 55 519 374 Move 11694 | 48 617 1094 603 265 444 317 1046 78 346 1236 159 1079 176 534 350 188 387 2014 713 Hop . | . . . . . . . . . . . . . . . . . . . . Pick Up 130 | 12 17 16 . 10 7 . 6 . 1 5 . 2 5 9 4 9 . 20 7 Fast Attach 21 | . . 3 . 1 2 . . . . 6 . 1 . 1 . . . 1 6 Attach 80 | 5 5 4 1 2 7 . 3 . . 3 . 1 3 9 6 4 1 11 15 Detach 11 | . . . . . 1 . . . . 1 . . 1 4 4 . . . . Swap 70 | 1 1 13 5 9 5 2 6 . 3 4 . 2 2 1 . . 5 9 2 Drop 91 | . 5 22 1 10 12 1 5 . 2 9 . 2 . 10 . 4 . 8 . Fire 193 | . 48 91 1 29 . . 4 . . . . . . 14 2 . 2 . 2 Melee 179 | . . . . . 12 . 1 . 2 9 . 20 1 24 1 12 6 45 46 Ram 2 | . . . . . . . . . . . . . . . . . . . 2 Kick . | . . . . . . . . . . . . . . . . . . . . Crush . | . . . . . . . . . . . . . . . . . . . . Escape Stasis 55 | . . . . . 13 . . . . . . . . 26 . . . 11 5 Rewire 186 | . . . . . . . . . . . . . . 186 . . . . . Trap 7 | . . . . . . . 7 . . . . . . . . . . . . Miscellaneous . | . . . . . . . . . . . . . . . . . . . . Route ------- -11/Scrapyard -10/Materials (discovered 3 exits: *Mat x3) -9/Materials (discovered 3 exits: *Mat x2 / *Min) -9/Mines -8/Materials (discovered 2 exits: *Fac x2) -7/Factory (discovered 2 exits: *Fac / *Low) -7/Lower Caves -7/Lower Caves (discovered 2 exits: *Fac / *Dat) -7/Data Miner -6/Proximity Caves -6/Factory (discovered 2 exits: Low x2) -6/Waste -6/Factory (discovered 2 exits: *Fac / *Low) -5/Factory (discovered 2 exits: *Fac / *Ext) -5/Extension (discovered 2 exits: *Fac / *Cet) -5/Cetus (discovered 2 exits: *Fac / *Arc) -5/Archives (discovered 3 exits: *Fac / *Hub x2) -5/Hub_04(d) -4/Factory (discovered 7 exits: *Res x4 / *Upp x2 / *Arm) -3/Research (discovered 5 exits: Res x3 / Tes x2) History --------- Turn | Location | Event 3 | -11/Scrapyard | Discovered new exit (range 16) 92 | -11/Scrapyard | Entered Materials 288 | -10/Materials | Discovered new exit (range 15) 302 | -10/Materials | Build established: Mutant 831 | -10/Materials | Discovered new exit (range 9) 1158 | -10/Materials | Discovered new exit (range 3) 1304 | -10/Materials | Entered another Materials area 1304 | -9/Materials | Evolved 2 slots: Propulsion x2 1690 | -9/Materials | Identified exit to Mines 2505 | -9/Materials | Build established: Scavenger-Mutant 2833 | -9/Materials | Discovered new exit (range 10) 3476 | -9/Materials | Discovered new exit (range 3) 3704 | -9/Materials | First assault squad dispatched 3731 | -9/Materials | Entered Mines 4688 | -9/Mines | Discovered new exit (range 12) 4724 | -9/Mines | Entered Materials 4724 | -8/Materials | Evolved 2 slots: Utility x2 4725 | -8/Materials | Identified exit to Factory 5248 | -8/Materials | Discovered exit to Factory (range 8) 5305 | -8/Materials | Entered Factory 5305 | -7/Factory | Evolved 2 slots: Utility x2 5580 | -7/Factory | Discovered new exit (range 16) 5587 | -7/Factory | Discovered new exit (range 12) 5593 | -7/Factory | Identified exit to Factory 5602 | -7/Factory | Build established: Scout 5620 | -7/Factory | Identified exit to Lower Caves 5667 | -7/Factory | Entered Lower Caves 5672 | -7/Lower Caves | Learned location of 1 exit from Factory 5753 | -7/Lower Caves | Learned Factory emergency access door positions 5813 | -7/Lower Caves | Discovered new exit (range 8) 5816 | -7/Lower Caves | Identified exit to Lower Caves 5823 | -7/Lower Caves | Entered another Lower Caves area 5976 | -7/Lower Caves | Learned Factory stockpile data 6037 | -7/Lower Caves | Found DCF Scrap (13 items) 6154 | -7/Lower Caves | Discovered exit to Factory (range 7) 6221 | -7/Lower Caves | Encountered a Warlord checkpoint 6235 | -7/Lower Caves | Attracted the attention of an 0b10 checkpoint 6344 | -7/Lower Caves | Learned Factory emergency access door positions 6421 | -7/Lower Caves | Discovered new exit (range 7) 6424 | -7/Lower Caves | Identified exit to Data Miner 6425 | -7/Lower Caves | Entered Data Miner 6425 | -7/Data Miner | Discovered new exit (range 6) 6427 | -7/Data Miner | Identified exit to Proximity Caves 6433 | -7/Data Miner | Met Data Miner 6441 | -7/Data Miner | Build established: Derelict-Scout 6443 | -7/Data Miner | Learned location of Section 7 (-2) 6443 | -7/Data Miner | Acquired the access code to Warlord's prototype stash 6451 | -7/Data Miner | Received God Mode back door access code from Data Miner 6463 | -7/Data Miner | Entered Proximity Caves 6470 | -6/Proximity Caves | Spotter reported a threat 6474 | -6/Proximity Caves | Learned Factory garrison access intel 6474 | -6/Proximity Caves | Spotter reported a threat 6523 | -6/Proximity Caves | Spotter reported a threat 6527 | -6/Proximity Caves | Spotter reported a threat 6540 | -6/Proximity Caves | Attracted the attention of an 0b10 outpost 6576 | -6/Proximity Caves | Spotter reported a threat 6580 | -6/Proximity Caves | Spotter reported a threat 6624 | -6/Proximity Caves | Learned 4 Factory zone layouts 6629 | -6/Proximity Caves | Spotter reported a threat 6633 | -6/Proximity Caves | Spotter reported a threat 6637 | -6/Proximity Caves | Discovered exit to Factory (range 9) 6641 | -6/Proximity Caves | Entered Factory 6641 | -6/Factory | Evolved 2 slots: Utility x2 6642 | -6/Factory | Identified exit to Lower Caves 6646 | -6/Factory | Loaded intel: 4 garrison access locations 6991 | -6/Factory | Search patrols dispatched 7295 | -6/Factory | Build established: Infiltrator-Ninja 7341 | -6/Factory | Search patrols dispatched 7348 | -6/Factory | Repaired Greatsword 7405 | -6/Factory | Sucked down chute 7405 | -6/Factory | Entered Waste 7408 | -6/Waste | Spotted C-40 Crusher 7418 | -6/Waste | Spotted C-40 Crusher 7441 | -6/Waste | Spotted C-40 Crusher 7464 | -6/Waste | Spotted C-40 Crusher 7465 | -6/Waste | Crushed by Compactor (1 part destroyed) 7467 | -6/Waste | Spotted C-40 Crusher 7475 | -6/Waste | Spotted C-40 Crusher 7476 | -6/Waste | Discovered new exit (range 22) 7485 | -6/Waste | Identified exit to Factory 7486 | -6/Waste | Entered Factory 7486 | -6/Factory | Discovered exit to Lower Caves (range 6) 7649 | -6/Factory | Spotted B-75 Beast 8056 | -6/Factory | Discovered new exit (range 13) 8063 | -6/Factory | Identified exit to Factory 8264 | -6/Factory | Entered another Factory area 8264 | -5/Factory | Evolved 2 slots: Utility x2 8290 | -5/Factory | Discovered new exit (range 16) 8306 | -5/Factory | Identified exit to Factory 8359 | -5/Factory | Discovered new exit (range 12) 8364 | -5/Factory | Identified exit to Extension 8364 | -5/Factory | Entered Extension 8541 | -5/Extension | Rescued a captive Derelict 8548 | -5/Extension | Rescued a captive Derelict 8567 | -5/Extension | Rescued a captive Derelict 8696 | -5/Extension | Rescued a captive Derelict 8767 | -5/Extension | Spotted B-75 Beast 8785 | -5/Extension | Lost 3 allies 8825 | -5/Extension | Energy Cycler disabled 8828 | -5/Extension | Rescued a captive Derelict 8832 | -5/Extension | Rescued a captive Derelict 8859 | -5/Extension | Rescued A7 8864 | -5/Extension | Lost 4 allies 9046 | -5/Extension | Lost 3 allies 9108 | -5/Extension | Discovered exit to Factory (range 10) 9109 | -5/Extension | Discovered new exit (range 6) 9144 | -5/Extension | Identified exit to Cetus 9149 | -5/Extension | Entered Cetus 9149 | -5/Cetus | Accompanied by 4 allies (A7) 9154 | -5/Cetus | Acquired a Cetus Manufacturing Module code from A7 9156 | -5/Cetus | Spotted Cetus Guard 9162 | -5/Cetus | Spotted Cetus Guard 9164 | -5/Cetus | Spotted Cetus Guard 9164 | -5/Cetus | Spotted Cetus Guard 9167 | -5/Cetus | Allies destroyed Cetus Guard 9179 | -5/Cetus | Allies destroyed Cetus Guard 9182 | -5/Cetus | Destroyed Cetus Guard 9203 | -5/Cetus | Lost 3 parts (1p2u) 9213 | -5/Cetus | Started Cetus Manufacturing Module 9227 | -5/Cetus | Escorted A7 to Cetus Mainframe 9238 | -5/Cetus | Manufactured an Enhanced Grunt 9263 | -5/Cetus | Manufactured an Enhanced Grunt 9288 | -5/Cetus | Manufactured an Enhanced Grunt 9290 | -5/Cetus | Discovered exit to Factory (range 22) 9313 | -5/Cetus | Manufactured an Enhanced Grunt 9338 | -5/Cetus | Manufactured an Enhanced Grunt 9353 | -5/Cetus | Discovered new exit (range 22) 9384 | -5/Cetus | Identified exit to Archives 9397 | -5/Cetus | Entered Archives 9397 | -5/Archives | Accompanied by 9 allies (A7) 9402 | -5/Archives | Received a hacking code to weaken MAIN.C 9411 | -5/Archives | Discovered new exit (range 22) 9414 | -5/Archives | Unable to access archive contents 9446 | -5/Archives | Lost 3 parts (2n1w) 9448 | -5/Archives | Discovered exit to Factory (range 18) 9457 | -5/Archives | Discovered new exit (range 13) 9545 | -5/Archives | Identified exit to Hub_04(d) 9581 | -5/Archives | Entered Hub_04(d) 9581 | -5/Hub_04(d) | Accompanied by 6 allies 9838 | -5/Hub_04(d) | Network Hub disabled 9844 | -5/Hub_04(d) | Spotted Lightning 9853 | -5/Hub_04(d) | Discovered exit to Factory (range 11) 9853 | -5/Hub_04(d) | Spotted Lightning 9853 | -5/Hub_04(d) | Spotted Lightning 9854 | -5/Hub_04(d) | Spotted Lightning 9858 | -5/Hub_04(d) | Entered Factory 9858 | -4/Factory | Evolved 2 slots: Propulsion x1, Utility x1 9880 | -4/Factory | Identified exit to Upper Caves 9880 | -4/Factory | Identified exit to Armory 9880 | -4/Factory | Central database locked down 9883 | -4/Factory | Lost 3 parts (2u1w) 9889 | -4/Factory | Lost 6 allies 9951 | -4/Factory | Repaired Cmb. Airjet 9988 | -4/Factory | Repaired Cld. Airjet 10015 | -4/Factory | Repaired Lyr. Medium Armor Plating 10132 | -4/Factory | Build established: Scavenger-Gladiator 10391 | -4/Factory | Discovered new exit (range 22) 10626 | -4/Factory | Build established: Scavenger-Mutant 10925 | -4/Factory | Fabricated Adv. Hacking Suite (x1) 11122 | -4/Factory | Spotted B-86 Titan 11368 | -4/Factory | Build established: Hacker-Mutant 11410 | -4/Factory | Repaired Corrupted Adv. Sensor Array 11451 | -4/Factory | Identified exit to Research 11485 | -4/Factory | Entered Research 11485 | -3/Research | Evolved 2 slots: Utility x2 11743 | -3/Research | Identified exit to Testing 11743 | -3/Research | Identified exit to Research 11943 | -3/Research | Lost 7 parts (5n2u) 12307 | -3/Research | Build established: Hacker-Ninja 12403 | -3/Research | Core integrity fell below 50% 12406 | -3/Research | System corruption reached 10% 12447 | -3/Research | Core integrity fell below 20% 12453 | -3/Research | Lost 19 parts (3p2n10u4w) 12460 | -3/Research | Destroyed by S-43 Plague with Heavy Machine Gun Last Messages --------------- M-36 Artificer repairs Y-72 Warden. K-01 Serf collects debris. Penetrated by Slug. Slug penetrates Wall. K-01 Serf collects debris. Lyr. Medium Armor Plating destroyed. Penetrated by Slug. K-01 Serf collects debris. Slug penetrates Wall. K-01 Serf collects debris. System corrupted: Matter fused (-5). Adv. Hacking Suite destroyed. K-01 Serf cleans the Subatomic Condenser. LMWFT7L2